[Event "*** Titled Tuesday Blitz"]
[Site "Chess.com"]
[Date "2020.11.24"]
[Round "2"]
[White "malakismayil"]
[Black "ZEN-22"]
[Result "1-0"]
[WhiteElo "2256"]
[BlackElo "2438"]
[TimeControl "180+1"]
[EndTime "10:34:05 PST"]
[Termination "malakismayil won by checkmate"]

1. e4 {[%clk 0:03:00.9]} 1... d5 {[%clk 0:02:58.9]} 2. exd5 {[%clk 0:03:00.6]}
2... c6 {[%clk 0:02:58.4]} 3. Nf3 {[%clk 0:02:59.4]} 3... cxd5 {[%clk
0:02:57.7]} 4. d4 {[%clk 0:02:59.8]} 4... Nc6 {[%clk 0:02:58.5]} 5. Bd3 {[%clk
0:02:55.4]} 5... Bg4 {[%clk 0:02:58.1]} 6. c3 {[%clk 0:02:54.5]} 6... e5 {[%clk
0:02:57.6]} 7. dxe5 {[%clk 0:02:53.1]} 7... Nxe5 {[%clk 0:02:56.5]} 8. Bb5+
{[%clk 0:02:53.6]} 8... Nc6 {[%clk 0:02:54.8]} 9. O-O {[%clk 0:02:51.4]} 9...
Bc5 {[%clk 0:02:54.5]} 10. Re1+ {[%clk 0:02:41.1]} 10... Ne7 {[%clk 0:02:54.1]}
11. Bg5 {[%clk 0:02:40]} 11... h6 {[%clk 0:02:41]} 12. Bxc6+ {[%clk 0:02:34.4]}
12... bxc6 {[%clk 0:02:40.3]} 13. Bxe7 {[%clk 0:02:34.5]} 13... Bxe7 {[%clk
0:02:38.9]} 14. Qe2 {[%clk 0:02:34.5]} 14... Bxf3 {[%clk 0:02:35.7]} 15. Qxf3
{[%clk 0:02:28.3]} 15... O-O {[%clk 0:02:35.3]} 16. Nd2 {[%clk 0:02:27.8]} 16...
Rb8 {[%clk 0:02:34.9]} 17. Nb3 {[%clk 0:02:24.8]} 17... Bd6 {[%clk 0:02:32.8]}
18. Rad1 {[%clk 0:02:21.2]} 18... a5 {[%clk 0:02:31.7]} 19. Re2 {[%clk
0:02:17.2]} 19... a4 {[%clk 0:02:30.4]} 20. Nd4 {[%clk 0:02:16.3]} 20... Qc7
{[%clk 0:02:27.2]} 21. h3 {[%clk 0:02:11.4]} 21... Rfe8 {[%clk 0:02:26.9]} 22.
Rde1 {[%clk 0:02:10.5]} 22... Rxe2 {[%clk 0:02:24.6]} 23. Rxe2 {[%clk
0:02:11.4]} 23... g6 {[%clk 0:02:24.4]} 24. Qe3 {[%clk 0:01:59.2]} 24... Kg7
{[%clk 0:02:22.5]} 25. Nf3 {[%clk 0:01:48.7]} 25... c5 {[%clk 0:02:16.3]} 26.
Qd3 {[%clk 0:01:47.9]} 26... Rd8 {[%clk 0:02:15.6]} 27. Kh1 {[%clk 0:01:43.5]}
27... Be7 {[%clk 0:02:11.1]} 28. Ne5 {[%clk 0:01:30.1]} 28... h5 {[%clk
0:02:05.4]} 29. f4 {[%clk 0:01:28.2]} 29... Bf6 {[%clk 0:02:04.1]} 30. Qb5
{[%clk 0:01:07.1]} 30... a3 {[%clk 0:01:54.6]} 31. bxa3 {[%clk 0:01:06.3]} 31...
Rb8 {[%clk 0:01:50.1]} 32. Qd3 {[%clk 0:00:56.6]} 32... Qd6 {[%clk 0:01:44.5]}
33. a4 {[%clk 0:00:50.1]} 33... Rd8 {[%clk 0:01:28.5]} 34. Qb5 {[%clk
0:00:35.3]} 34... Rb8 {[%clk 0:01:24.3]} 35. Qd3 {[%clk 0:00:34]} 35... Rd8
{[%clk 0:01:22.7]} 36. Qb5 {[%clk 0:00:33.5]} 36... c4 {[%clk 0:01:08.5]} 37.
Qb7 {[%clk 0:00:18.1]} 37... Bxe5 {[%clk 0:01:03.9]} 38. fxe5 {[%clk 0:00:19]}
38... Qe6 {[%clk 0:01:03.6]} 39. a5 {[%clk 0:00:18.7]} 39... Rd7 {[%clk
0:01:02.3]} 40. Qb6 {[%clk 0:00:16.6]} 40... Re7 {[%clk 0:00:54.6]} 41. Qxe6
{[%clk 0:00:15.1]} 41... fxe6 {[%clk 0:00:55.5]} 42. Rb2 {[%clk 0:00:13.4]}
42... Ra7 {[%clk 0:00:55.9]} 43. Rb5 {[%clk 0:00:11.7]} 43... Kf7 {[%clk
0:00:54.5]} 44. Kg1 {[%clk 0:00:12.1]} 44... Ke7 {[%clk 0:00:54.9]} 45. Kf2
{[%clk 0:00:12.6]} 45... Kd7 {[%clk 0:00:51.9]} 46. Ke3 {[%clk 0:00:12.8]} 46...
Kc6 {[%clk 0:00:52.4]} 47. Rb6+ {[%clk 0:00:12.8]} 47... Kc5 {[%clk 0:00:52.8]}
48. Rxe6 {[%clk 0:00:11.9]} 48... Rxa5 {[%clk 0:00:53.2]} 49. Rxg6 {[%clk
0:00:12.8]} 49... Rxa2 {[%clk 0:00:52.7]} 50. Rg8 {[%clk 0:00:12.9]} 50... Rc2
{[%clk 0:00:52.4]} 51. Rc8+ {[%clk 0:00:12.6]} 51... Kb6 {[%clk 0:00:52.4]} 52.
e6 {[%clk 0:00:12.6]} 52... Rxc3+ {[%clk 0:00:51.9]} 53. Kf4 {[%clk 0:00:12.9]}
53... Rc2 {[%clk 0:00:51.3]} 54. e7 {[%clk 0:00:11.7]} 54... Re2 {[%clk
0:00:50.9]} 55. e8=Q {[%clk 0:00:11.7]} 55... Rxe8 {[%clk 0:00:49.9]} 56. Rxe8
{[%clk 0:00:12.6]} 56... Kc5 {[%clk 0:00:49.9]} 57. Rc8+ {[%clk 0:00:12.4]}
57... Kd4 {[%clk 0:00:49.8]} 58. g4 {[%clk 0:00:11.7]} 58... h4 {[%clk
0:00:50.7]} 59. g5 {[%clk 0:00:11.7]} 59... c3 {[%clk 0:00:50.6]} 60. g6 {[%clk
0:00:12]} 60... Kd3 {[%clk 0:00:51.2]} 61. g7 {[%clk 0:00:12]} 61... d4 {[%clk
0:00:52.1]} 62. g8=Q {[%clk 0:00:12]} 62... Kc2 {[%clk 0:00:53]} 63. Qc4 {[%clk
0:00:11.6]} 63... Kd2 {[%clk 0:00:53.9]} 64. Qxd4+ {[%clk 0:00:10.7]} 64... Ke2
{[%clk 0:00:52.7]} 65. Qxc3 {[%clk 0:00:11.6]} 65... Kf1 {[%clk 0:00:53.5]} 66.
Qf3+ {[%clk 0:00:11.6]} 66... Ke1 {[%clk 0:00:53.1]} 67. Rc1+ {[%clk 0:00:12.1]}
67... Kd2 {[%clk 0:00:54]} 68. Rd1+ {[%clk 0:00:12.5]} 68... Kc2 {[%clk
0:00:54]} 69. Qd3+ {[%clk 0:00:12.8]} 69... Kb2 {[%clk 0:00:54.9]} 70. Rb1+
{[%clk 0:00:13.2]} 70... Ka2 {[%clk 0:00:55.2]} 71. Qb3# {[%clk 0:00:13.4]} 1-0

[Event "*** Titled Tuesday Blitz"]
[Site "Chess.com"]
[Date "2020.11.24"]
[Round "2"]
[White "Gusarov91"]
[Black "Fortitudine"]
[Result "1-0"]
[WhiteElo "2664"]
[BlackElo "2351"]
[TimeControl "180+1"]
[EndTime "10:34:08 PST"]
[Termination "Gusarov91 won by resignation"]

1. d4 {[%clk 0:02:59.5]} 1... Nf6 {[%clk 0:02:59.5]} 2. Nf3 {[%clk 0:02:57.7]}
2... g6 {[%clk 0:02:55.8]} 3. c4 {[%clk 0:02:56.4]} 3... c5 {[%clk 0:02:55.4]}
4. g3 {[%clk 0:02:56.2]} 4... Bg7 {[%clk 0:02:52.7]} 5. Bg2 {[%clk 0:02:56.3]}
5... O-O {[%clk 0:02:52.5]} 6. O-O {[%clk 0:02:56.4]} 6... cxd4 {[%clk
0:02:46.2]} 7. Nxd4 {[%clk 0:02:55.9]} 7... Nc6 {[%clk 0:02:46.5]} 8. Nc3 {[%clk
0:02:55.1]} 8... d6 {[%clk 0:02:46.9]} 9. Nxc6 {[%clk 0:02:54.6]} 9... bxc6
{[%clk 0:02:47]} 10. Bxc6 {[%clk 0:02:55.3]} 10... Rb8 {[%clk 0:02:47.3]} 11.
Bg2 {[%clk 0:02:50.8]} 11... Qa5 {[%clk 0:02:46.7]} 12. Qc2 {[%clk 0:02:46.2]}
12... Bb7 {[%clk 0:02:46.7]} 13. Bd2 {[%clk 0:02:36.8]} 13... Bxg2 {[%clk
0:02:46.2]} 14. Kxg2 {[%clk 0:02:37.4]} 14... Rfc8 {[%clk 0:02:46.3]} 15. b3
{[%clk 0:02:36.1]} 15... d5 {[%clk 0:02:46]} 16. Na4 {[%clk 0:02:27.9]} 16...
Qa6 {[%clk 0:02:32.7]} 17. Bf4 {[%clk 0:02:24.4]} 17... Rb7 {[%clk 0:02:21.2]}
18. c5 {[%clk 0:02:23.7]} 18... Ne4 {[%clk 0:02:17.3]} 19. Rac1 {[%clk
0:02:23.7]} 19... e5 {[%clk 0:02:09.2]} 20. Be3 {[%clk 0:02:22]} 20... f5 {[%clk
0:02:04.4]} 21. Qd3 {[%clk 0:02:17.5]} 21... Qc6 {[%clk 0:01:56.6]} 22. f3
{[%clk 0:02:16.6]} 22... Nf6 {[%clk 0:01:41.3]} 23. Rfd1 {[%clk 0:02:16.1]}
23... d4 {[%clk 0:01:41]} 24. Bf2 {[%clk 0:02:14.5]} 24... Nd5 {[%clk
0:01:35.6]} 25. e4 {[%clk 0:02:07.9]} 25... fxe4 {[%clk 0:01:34.3]} 26. Qxe4
{[%clk 0:02:06.1]} 26... Nb4 {[%clk 0:00:57.4]} 27. Qxc6 {[%clk 0:01:59.7]}
27... Rxc6 {[%clk 0:00:57.5]} 28. Rc4 {[%clk 0:01:49.4]} 28... Nxa2 {[%clk
0:00:53.4]} 29. f4 {[%clk 0:01:45.7]} 29... Rxb3 {[%clk 0:00:40.8]} 30. fxe5
{[%clk 0:01:44.7]} 30... Bxe5 {[%clk 0:00:40.8]} 31. Bxd4 {[%clk 0:01:42.5]}
31... Bxd4 {[%clk 0:00:34.3]} 32. Rdxd4 {[%clk 0:01:42.1]} 32... Rb1 {[%clk
0:00:22.3]} 33. Rd8+ {[%clk 0:01:41.3]} 33... Kf7 {[%clk 0:00:21.7]} 34. Rd7+
{[%clk 0:01:42.2]} 34... Ke6 {[%clk 0:00:20.7]} 35. Rxa7 {[%clk 0:01:40.7]}
35... Nc1 {[%clk 0:00:20.8]} 36. Rxh7 {[%clk 0:01:36.6]} 36... Nd3 {[%clk
0:00:20.1]} 37. Rd4 {[%clk 0:01:31.2]} 37... Ne1+ {[%clk 0:00:19]} 38. Kf2
{[%clk 0:01:25.5]} 38... Ke5 {[%clk 0:00:19.2]} 39. Rd6 {[%clk 0:01:23.2]} 39...
Rxd6 {[%clk 0:00:18.4]} 40. cxd6 {[%clk 0:01:23.6]} 40... Kxd6 {[%clk
0:00:19.3]} 41. Rg7 {[%clk 0:01:23.3]} 41... Nd3+ {[%clk 0:00:19.7]} 42. Ke3
{[%clk 0:01:21.2]} 42... Ne5 {[%clk 0:00:20.6]} 43. Nc3 {[%clk 0:01:20.9]} 43...
Rb3 {[%clk 0:00:20.4]} 44. Kd4 {[%clk 0:01:17.2]} 44... Rb4+ {[%clk 0:00:20.6]}
45. Ke3 {[%clk 0:01:17.2]} 45... Rb3 {[%clk 0:00:21.1]} 46. Kd2 {[%clk
0:01:02.1]} 46... Rb2+ {[%clk 0:00:21.3]} 47. Kd1 {[%clk 0:01:00.1]} 47... Rxh2
{[%clk 0:00:21.8]} 48. Ne4+ {[%clk 0:00:59.8]} 48... Kd5 {[%clk 0:00:22.2]} 49.
Ng5 {[%clk 0:01:00]} 49... Kd4 {[%clk 0:00:20.4]} 50. Re7 {[%clk 0:00:58.5]}
50... Rh1+ {[%clk 0:00:20.2]} 51. Ke2 {[%clk 0:00:58.4]} 51... Rh2+ {[%clk
0:00:20.7]} 52. Kf1 {[%clk 0:00:58.4]} 52... Rh1+ {[%clk 0:00:21.1]} 53. Kg2
{[%clk 0:00:58.5]} 53... Ra1 {[%clk 0:00:21.5]} 54. Nf3+ {[%clk 0:00:56.6]}
54... Nxf3 {[%clk 0:00:21.2]} 55. Kxf3 {[%clk 0:00:57.5]} 55... Ra6 {[%clk
0:00:21.4]} 56. Kf4 {[%clk 0:00:56.8]} 56... Rf6+ {[%clk 0:00:20.5]} 57. Kg5
{[%clk 0:00:57.3]} 57... Rf3 {[%clk 0:00:20.2]} 58. g4 {[%clk 0:00:57.7]} 58...
Kd5 {[%clk 0:00:18.7]} 59. Kxg6 {[%clk 0:00:57.4]} 59... Kd6 {[%clk 0:00:19.3]}
60. Re1 {[%clk 0:00:57.5]} 60... Rf2 {[%clk 0:00:17.9]} 61. g5 {[%clk
0:00:57.7]} 61... Rg2 {[%clk 0:00:17.2]} 62. Kf6 {[%clk 0:00:58.1]} 62... Rf2+
{[%clk 0:00:16.9]} 63. Kg7 {[%clk 0:00:58.4]} 63... Rg2 {[%clk 0:00:17.2]} 64.
g6 {[%clk 0:00:59]} 64... Kd7 {[%clk 0:00:17.4]} 65. Kf7 {[%clk 0:00:59]} 65...
Rf2+ {[%clk 0:00:17.5]} 66. Kg8 {[%clk 0:00:59.6]} 66... Rg2 {[%clk 0:00:18.1]}
67. g7 {[%clk 0:01:00.2]} 67... Kd8 {[%clk 0:00:18.1]} 68. Re5 {[%clk
0:01:00.1]} 68... Kd7 {[%clk 0:00:17.4]} 69. Kf7 {[%clk 0:01:00.4]} 69... Rf2+
{[%clk 0:00:17.7]} 70. Kg6 {[%clk 0:01:00.4]} 70... Rg2+ {[%clk 0:00:17.9]} 71.
Rg5 {[%clk 0:01:00.7]} 71... Rxg5+ {[%clk 0:00:17.6]} 72. Kxg5 {[%clk
0:01:00.9]} 72... Ke7 {[%clk 0:00:18.5]} 73. g8=Q {[%clk 0:01:01.5]} 1-0

[Event "*** Titled Tuesday Blitz"]
[Site "Chess.com"]
[Date "2020.11.24"]
[Round "2"]
[White "TC2304"]
[Black "Zq1"]
[Result "1-0"]
[WhiteElo "2344"]
[BlackElo "2590"]
[TimeControl "180+1"]
[EndTime "10:34:09 PST"]
[Termination "TC2304 won on time"]

1. d4 {[%clk 0:03:00.9]} 1... Nf6 {[%clk 0:02:56.8]} 2. Bg5 {[%clk 0:03:00.8]}
2... c5 {[%clk 0:02:51.7]} 3. Nc3 {[%clk 0:03:00.4]} 3... cxd4 {[%clk
0:02:51.3]} 4. Qxd4 {[%clk 0:03:01.3]} 4... Nc6 {[%clk 0:02:51.1]} 5. Qh4 {[%clk
0:03:02]} 5... e6 {[%clk 0:02:49.2]} 6. e4 {[%clk 0:03:02.3]} 6... Be7 {[%clk
0:02:46.4]} 7. O-O-O {[%clk 0:03:01.6]} 7... Qa5 {[%clk 0:02:39.1]} 8. a3 {[%clk
0:02:53.9]} 8... h6 {[%clk 0:02:37.8]} 9. Bd2 {[%clk 0:02:49]} 9... Qc7 {[%clk
0:02:31.8]} 10. Bd3 {[%clk 0:02:29.5]} 10... a6 {[%clk 0:02:30.3]} 11. Nf3
{[%clk 0:02:18.9]} 11... b5 {[%clk 0:02:26.5]} 12. Rhe1 {[%clk 0:02:16]} 12...
b4 {[%clk 0:02:11.2]} 13. axb4 {[%clk 0:02:15.5]} 13... Nxb4 {[%clk 0:02:11.2]}
14. e5 {[%clk 0:02:12]} 14... Nxd3+ {[%clk 0:02:00.7]} 15. cxd3 {[%clk
0:02:12.9]} 15... Nd5 {[%clk 0:01:58.6]} 16. Qg4 {[%clk 0:01:52.3]} 16... g6
{[%clk 0:01:33.8]} 17. Kb1 {[%clk 0:01:38.3]} 17... Nxc3+ {[%clk 0:01:30.8]} 18.
Bxc3 {[%clk 0:01:36.3]} 18... Rb8 {[%clk 0:01:27.2]} 19. Qc4 {[%clk 0:01:27]}
19... Qb6 {[%clk 0:01:14.5]} 20. d4 {[%clk 0:01:19.4]} 20... Bb7 {[%clk
0:01:11.9]} 21. d5 {[%clk 0:01:19.8]} 21... Bxd5 {[%clk 0:01:08.6]} 22. Rxd5
{[%clk 0:01:19.7]} 22... exd5 {[%clk 0:01:08]} 23. Qxd5 {[%clk 0:01:20.1]} 23...
Qc6 {[%clk 0:00:42.3]} 24. Qd4 {[%clk 0:00:51.4]} 24... Bc5 {[%clk 0:00:30.9]}
25. Qg4 {[%clk 0:00:40.4]} 25... Bxf2 {[%clk 0:00:20.3]} 26. Rc1 {[%clk
0:00:40.2]} 26... Qe6 {[%clk 0:00:18.9]} 27. Qe4 {[%clk 0:00:31.3]} 27... Qf5
{[%clk 0:00:18.9]} 28. Qxf5 {[%clk 0:00:29.8]} 28... gxf5 {[%clk 0:00:19.1]} 29.
Rf1 {[%clk 0:00:29.7]} 29... Be3 {[%clk 0:00:18.2]} 30. Nh4 {[%clk 0:00:29.4]}
30... f4 {[%clk 0:00:17.8]} 31. e6 {[%clk 0:00:28]} 31... O-O {[%clk 0:00:16.1]}
32. exd7 {[%clk 0:00:27.2]} 32... Rfd8 {[%clk 0:00:16]} 33. Nf5 {[%clk
0:00:23.6]} 33... Rxd7 {[%clk 0:00:16]} 34. Nxh6+ {[%clk 0:00:23.4]} 34... Kh7
{[%clk 0:00:16]} 35. Ng4 {[%clk 0:00:22.8]} 35... Rd3 {[%clk 0:00:14.4]} 36. Kc2
{[%clk 0:00:20.5]} 36... Rd5 {[%clk 0:00:14.2]} 37. Nxe3 {[%clk 0:00:20.1]}
37... fxe3 {[%clk 0:00:13.7]} 38. Rxf7+ {[%clk 0:00:21]} 38... Kg6 {[%clk
0:00:13]} 39. Re7 {[%clk 0:00:21.5]} 39... Rd2+ {[%clk 0:00:12]} 40. Bxd2 {[%clk
0:00:20.6]} 40... exd2 {[%clk 0:00:10.9]} 41. Rd7 {[%clk 0:00:19.3]} 41... Rh8
{[%clk 0:00:07]} 42. h3 {[%clk 0:00:18.8]} 42... Kf5 {[%clk 0:00:06.5]} 43. Rxd2
{[%clk 0:00:17.7]} 43... Rb8 {[%clk 0:00:06.7]} 44. Kc3 {[%clk 0:00:17.3]} 44...
Ke4 {[%clk 0:00:06.8]} 45. Re2+ {[%clk 0:00:16.8]} 45... Kd5 {[%clk 0:00:06.8]}
46. b4 {[%clk 0:00:17]} 46... Rc8+ {[%clk 0:00:06.8]} 47. Kb3 {[%clk 0:00:17.5]}
47... Kd4 {[%clk 0:00:06.7]} 48. Rd2+ {[%clk 0:00:17.5]} 48... Ke3 {[%clk
0:00:06.2]} 49. Rc2 {[%clk 0:00:18]} 49... Rg8 {[%clk 0:00:05.1]} 50. Ka4 {[%clk
0:00:17.7]} 50... Kd4 {[%clk 0:00:03.7]} 51. Ka5 {[%clk 0:00:16.6]} 51... Rg6
{[%clk 0:00:04.2]} 52. Rc7 {[%clk 0:00:15.1]} 52... Rxg2 {[%clk 0:00:02.6]} 53.
Kxa6 {[%clk 0:00:14.9]} 53... Ra2+ {[%clk 0:00:02.3]} 54. Kb6 {[%clk 0:00:14.2]}
54... Rh2 {[%clk 0:00:02.7]} 55. Rh7 {[%clk 0:00:13.8]} 55... Kc4 {[%clk
0:00:02.3]} 56. b5 {[%clk 0:00:13.3]} 1-0

[Event "*** Titled Tuesday Blitz"]
[Site "Chess.com"]
[Date "2020.11.24"]
[Round "2"]
[White "Sinquefield"]
[Black "Zubrrr"]
[Result "0-1"]
[WhiteElo "2344"]
[BlackElo "2659"]
[TimeControl "180+1"]
[EndTime "10:34:10 PST"]
[Termination "Zubrrr won by checkmate"]

1. e4 {[%clk 0:02:52.7]} 1... c5 {[%clk 0:02:59.7]} 2. Nf3 {[%clk 0:02:53]} 2...
d6 {[%clk 0:03:00.1]} 3. d4 {[%clk 0:02:53.2]} 3... cxd4 {[%clk 0:03:01]} 4.
Nxd4 {[%clk 0:02:49.6]} 4... Nf6 {[%clk 0:03:01.2]} 5. Nc3 {[%clk 0:02:50]} 5...
a6 {[%clk 0:03:01.5]} 6. Bc4 {[%clk 0:02:49.9]} 6... Qc7 {[%clk 0:02:57.3]} 7.
Bb3 {[%clk 0:02:49.8]} 7... e6 {[%clk 0:02:57.5]} 8. Qf3 {[%clk 0:02:44.1]} 8...
Nc6 {[%clk 0:02:53.9]} 9. Be3 {[%clk 0:02:33.2]} 9... Be7 {[%clk 0:02:45.6]} 10.
O-O {[%clk 0:02:32.2]} 10... O-O {[%clk 0:02:39.2]} 11. Rad1 {[%clk 0:02:32.4]}
11... Na5 {[%clk 0:02:33.3]} 12. Qg3 {[%clk 0:02:30.8]} 12... Kh8 {[%clk
0:02:30.4]} 13. f4 {[%clk 0:02:29.1]} 13... b5 {[%clk 0:01:18.7]} 14. e5 {[%clk
0:02:14]} 14... Ne8 {[%clk 0:01:18.8]} 15. Ne4 {[%clk 0:02:10.7]} 15... Nxb3
{[%clk 0:01:13]} 16. cxb3 {[%clk 0:02:09.3]} 16... Bb7 {[%clk 0:01:13.2]} 17.
Ng5 {[%clk 0:02:07.8]} 17... Bd5 {[%clk 0:01:00.3]} 18. Rc1 {[%clk 0:01:56.1]}
18... Qb7 {[%clk 0:00:55.8]} 19. Qh3 {[%clk 0:01:51.5]} 19... h6 {[%clk
0:00:54.4]} 20. Ngf3 {[%clk 0:01:41.5]} 20... f5 {[%clk 0:00:45.7]} 21. exf6
{[%clk 0:01:37.6]} 21... Rxf6 {[%clk 0:00:32.2]} 22. f5 {[%clk 0:01:37.8]} 22...
e5 {[%clk 0:00:29.9]} 23. Ne6 {[%clk 0:01:38.2]} 23... Kg8 {[%clk 0:00:17]} 24.
Qg4 {[%clk 0:01:11]} 24... Bxe6 {[%clk 0:00:13.5]} 25. fxe6 {[%clk 0:01:10.4]}
25... Qd5 {[%clk 0:00:13.5]} 26. Nh4 {[%clk 0:01:04.1]} 26... Qxe6 {[%clk
0:00:12.2]} 27. Nf5 {[%clk 0:01:04.5]} 27... Kh7 {[%clk 0:00:08.7]} 28. Qh3
{[%clk 0:00:58.4]} 28... d5 {[%clk 0:00:05.2]} 29. Rce1 {[%clk 0:00:56]} 29...
Rd8 {[%clk 0:00:03.3]} 30. Bd4 {[%clk 0:00:55.5]} 30... e4 {[%clk 0:00:01.7]}
31. Bxf6 {[%clk 0:00:55.4]} 31... Bxf6 {[%clk 0:00:02]} 32. Kh1 {[%clk
0:00:54.3]} 32... Bxb2 {[%clk 0:00:01.5]} 33. Qh4 {[%clk 0:00:41.3]} 33... Bf6
{[%clk 0:00:01]} 34. Qg3 {[%clk 0:00:41.7]} 34... Nd6 {[%clk 0:00:01.5]} 35.
Nxd6 {[%clk 0:00:38.6]} 35... Qxd6 {[%clk 0:00:02.4]} 36. Qg4 {[%clk 0:00:37.4]}
36... Qd7 {[%clk 0:00:02.5]} 37. Qh5 {[%clk 0:00:35.5]} 37... Qe6 {[%clk
0:00:02.9]} 38. g3 {[%clk 0:00:32.6]} 38... d4 {[%clk 0:00:03.1]} 39. Qe2 {[%clk
0:00:30.3]} 39... e3 {[%clk 0:00:02.9]} 40. Qd3+ {[%clk 0:00:30.2]} 40... Kh8
{[%clk 0:00:03.2]} 41. Rf3 {[%clk 0:00:28.5]} 41... Qc6 {[%clk 0:00:02.7]} 42.
Kg2 {[%clk 0:00:27.5]} 42... Rc8 {[%clk 0:00:02.2]} 43. Re2 {[%clk 0:00:26.2]}
43... Qd5 {[%clk 0:00:02.4]} 44. h4 {[%clk 0:00:22.6]} 44... Rc3 {[%clk
0:00:02.2]} 45. Qg6 {[%clk 0:00:23]} 45... Rc8 {[%clk 0:00:01.4]} 46. Qg4 {[%clk
0:00:22.2]} 46... Rd8 {[%clk 0:00:01.1]} 47. h5 {[%clk 0:00:22.5]} 47... Re8
{[%clk 0:00:01.6]} 48. Qg6 {[%clk 0:00:21.9]} 48... Re5 {[%clk 0:00:02]} 49. g4
{[%clk 0:00:21.1]} 49... Rg5 {[%clk 0:00:02.3]} 50. Qe8+ {[%clk 0:00:20.5]}
50... Kh7 {[%clk 0:00:02.8]} 51. Kg3 {[%clk 0:00:19.5]} 51... Be5+ {[%clk
0:00:02.9]} 52. Kg2 {[%clk 0:00:16.4]} 52... Rxg4+ {[%clk 0:00:03]} 53. Kf1
{[%clk 0:00:14.4]} 53... Qxf3+ {[%clk 0:00:03.7]} 54. Ke1 {[%clk 0:00:15.3]}
54... Rg1# {[%clk 0:00:03.8]} 0-1

[Event "*** Titled Tuesday Blitz"]
[Site "Chess.com"]
[Date "2020.11.24"]
[Round "2"]
[White "ExtremeLearner"]
[Black "TheKingDoctor"]
[Result "1/2-1/2"]
[WhiteElo "2395"]
[BlackElo "2113"]
[TimeControl "180+1"]
[EndTime "10:34:10 PST"]
[Termination "Game drawn by repetition"]

1. Nf3 {[%clk 0:03:00.9]} 1... Nf6 {[%clk 0:02:58.5]} 2. g3 {[%clk 0:02:58.6]}
2... g6 {[%clk 0:02:57.2]} 3. Bg2 {[%clk 0:02:57.9]} 3... Bg7 {[%clk 0:02:57.8]}
4. O-O {[%clk 0:02:53.6]} 4... O-O {[%clk 0:02:58.2]} 5. d4 {[%clk 0:02:49.6]}
5... d6 {[%clk 0:02:52]} 6. c4 {[%clk 0:02:46.5]} 6... c6 {[%clk 0:02:52]} 7.
Nc3 {[%clk 0:02:40]} 7... Bf5 {[%clk 0:02:45.7]} 8. Ng5 {[%clk 0:02:33.3]} 8...
d5 {[%clk 0:02:25.6]} 9. b3 {[%clk 0:01:59]} 9... h6 {[%clk 0:02:22.3]} 10. Nf3
{[%clk 0:01:51]} 10... Ne4 {[%clk 0:02:21.7]} 11. Bb2 {[%clk 0:01:44.3]} 11...
Nxc3 {[%clk 0:02:19.6]} 12. Bxc3 {[%clk 0:01:42.9]} 12... Be4 {[%clk 0:02:20.2]}
13. e3 {[%clk 0:01:33.9]} 13... Nd7 {[%clk 0:02:15]} 14. Ne1 {[%clk 0:01:22.9]}
14... Bxg2 {[%clk 0:02:13]} 15. Nxg2 {[%clk 0:01:23.8]} 15... Nf6 {[%clk
0:02:12.4]} 16. Qc2 {[%clk 0:01:15.6]} 16... Ne4 {[%clk 0:02:09.1]} 17. Bb2
{[%clk 0:01:10.1]} 17... Rc8 {[%clk 0:02:05.5]} 18. f3 {[%clk 0:00:56.2]} 18...
Ng5 {[%clk 0:02:00.1]} 19. Rad1 {[%clk 0:00:49.3]} 19... Qa5 {[%clk 0:01:50.4]}
20. Bc3 {[%clk 0:00:44.6]} 20... Qb6 {[%clk 0:01:43.4]} 21. c5 {[%clk
0:00:42.7]} 21... Qc7 {[%clk 0:01:42.3]} 22. b4 {[%clk 0:00:35.7]} 22... Nh3+
{[%clk 0:01:23.6]} 23. Kh1 {[%clk 0:00:30.5]} 23... e5 {[%clk 0:01:24.1]} 24. f4
{[%clk 0:00:21.8]} 24... exd4 {[%clk 0:01:16.4]} 25. Bxd4 {[%clk 0:00:19.2]}
25... Bxd4 {[%clk 0:01:14.9]} 26. exd4 {[%clk 0:00:20.1]} 26... Rce8 {[%clk
0:01:00.6]} 27. Rfe1 {[%clk 0:00:17.5]} 27... Re4 {[%clk 0:00:52.1]} 28. Rxe4
{[%clk 0:00:14.4]} 28... dxe4 {[%clk 0:00:53]} 29. Ne3 {[%clk 0:00:13.9]} 29...
g5 {[%clk 0:00:22.5]} 30. Qg2 {[%clk 0:00:10.1]} 30... Qd7 {[%clk 0:00:20.4]}
31. f5 {[%clk 0:00:08.9]} 31... g4 {[%clk 0:00:16.5]} 32. Rd2 {[%clk 0:00:06.6]}
32... h5 {[%clk 0:00:13.8]} 33. Qxe4 {[%clk 0:00:06.1]} 33... Re8 {[%clk
0:00:14.1]} 34. Qd3 {[%clk 0:00:04.1]} 34... Rxe3 {[%clk 0:00:10.5]} 35. Qxe3
{[%clk 0:00:04.4]} 35... Qd5+ {[%clk 0:00:11.1]} 36. Rg2 {[%clk 0:00:05]} 36...
Qc4 {[%clk 0:00:07.9]} 37. Qe8+ {[%clk 0:00:04.6]} 37... Kg7 {[%clk 0:00:08]}
38. Qe5+ {[%clk 0:00:04.8]} 38... Kh7 {[%clk 0:00:07.3]} 39. Qe1 {[%clk
0:00:04.8]} 39... Qxd4 {[%clk 0:00:06]} 40. f6 {[%clk 0:00:03.5]} 40... Qxf6
{[%clk 0:00:04.4]} 41. Qe4+ {[%clk 0:00:03.4]} 41... Kg7 {[%clk 0:00:04.4]} 42.
Qe1 {[%clk 0:00:03.7]} 42... Qf3 {[%clk 0:00:04.2]} 43. Qa1+ {[%clk 0:00:02.6]}
43... Kg6 {[%clk 0:00:04]} 44. Qe1 {[%clk 0:00:03.4]} 44... f6 {[%clk
0:00:03.8]} 45. Qb1+ {[%clk 0:00:03.9]} 45... Kg7 {[%clk 0:00:04]} 46. Qe1
{[%clk 0:00:04.8]} 46... Kg6 {[%clk 0:00:04.5]} 47. Qb1+ {[%clk 0:00:04.8]}
47... Kf7 {[%clk 0:00:04.1]} 48. Qe1 {[%clk 0:00:05.1]} 48... Kg6 {[%clk
0:00:04.2]} 1/2-1/2